Department Family,Entity,Date Paid,Expense Type,Expenses Area,Supplier Name,Transaction Reference,Total,VAT Registration Number,Vlookup
Department of Health,Imperial College Healthcare NHS Trust,10/01/2023,Agency Consultant,Pathology,Reed Specialist Recruitment Ltd,58146,"58,205.69",Optional requirement only,0
Department of Health,Imperial College Healthcare NHS Trust,10/01/2023,Agency Nursing: Qualified,Div Of Med & Integrated Care,Reed Specialist Recruitment Ltd,4885798,"63,709.54",Optional requirement only,0
Department of Health,Imperial College Healthcare NHS Trust,10/01/2023,Agency Nursing: Qualified,"Div Of Surg, Cardiov & Cancer",Reed Specialist Recruitment Ltd,4885798,"70,057.63",Optional requirement only,0
Department of Health,Imperial College Healthcare NHS Trust,10/01/2023,Clinical Managed Service Contr,Pathology,Abbott Laboratories Ltd,4868383,"335,140.05",Optional requirement only,0
Department of Health,Imperial College Healthcare NHS Trust,10/01/2023,Clinical Managed Service Contr,Pathology,Abbott Laboratories Ltd,4879366,"373,991.72",Optional requirement only,0
Department of Health,Imperial College Healthcare NHS Trust,10/01/2023,Clinical Managed Service Contr,Pathology,Abbott Laboratories Ltd,4879367,"143,078.56",Optional requirement only,0
Department of Health,Imperial College Healthcare NHS Trust,10/01/2023,Clinical Managed Service Contr,Pathology,Abbott Laboratories Ltd,4879368,"281,792.32",Optional requirement only,0
Department of Health,Imperial College Healthcare NHS Trust,10/01/2023,Clinical Managed Service Contr,Pathology,Abbott Laboratories Ltd,4879369,"342,992.51",Optional requirement only,0
Department of Health,Imperial College Healthcare NHS Trust,10/01/2023,Clinical Managed Service Contr,Pathology,Abbott Laboratories Ltd,4879370,"211,861.43",Optional requirement only,0
Department of Health,Imperial College Healthcare NHS Trust,10/01/2023,Clinical Managed Service Contr,Pathology,Abbott Laboratories Ltd,55894,"405,213.54",Optional requirement only,0
Department of Health,Imperial College Healthcare NHS Trust,10/01/2023,Clinical Managed Service Contr,Pathology,Abbott Laboratories Ltd,55896,"363,060.76",Optional requirement only,0
Department of Health,Imperial College Healthcare NHS Trust,10/01/2023,Clinical Managed Service Contr,Pathology,Abbott Laboratories Ltd,55897,"555,461.40",Optional requirement only,0
Department of Health,Imperial College Healthcare NHS Trust,10/01/2023,Clinical Managed Service Contr,Pathology,Abbott Laboratories Ltd,56739,"402,631.06",Optional requirement only,0
Department of Health,Imperial College Healthcare NHS Trust,10/01/2023,Clinical Managed Service Contr,Pathology,Abbott Laboratories Ltd,56740,"512,462.93",Optional requirement only,0
Department of Health,Imperial College Healthcare NHS Trust,10/01/2023,Contr Other External,Estates Directorate,Cbre Managed Services Ltd,4857768,"827,301.18",Optional requirement only,0
Department of Health,Imperial College Healthcare NHS Trust,10/01/2023,Cy Auc -Addns- Prof Fee)-Purch,Capital Summary,Ingleton Wood,4883474,"64,800.00",Optional requirement only,0
Department of Health,Imperial College Healthcare NHS Trust,10/01/2023,Cy Auc -Addns- Prof Fee)-Purch,Capital Summary,Lexica Health & Life Sciences Consultancy Ltd,4859873,"44,242.80",Optional requirement only,0
Department of Health,Imperial College Healthcare NHS Trust,10/01/2023,Dialysers,Div Of Med & Integrated Care,Nxstage Medical Uk Ltd,4638583,"50,837.88",Optional requirement only,0
Department of Health,Imperial College Healthcare NHS Trust,10/01/2023,Dist Award - Local Cea,Div Of Med & Integrated Care,Imperial College London,4884261,"28,095.86",Optional requirement only,0
Department of Health,Imperial College Healthcare NHS Trust,10/01/2023,Dist Award - Nat Cea,Div Of Med & Integrated Care,Imperial College London,4884261,"71,362.64",Optional requirement only,0
Department of Health,Imperial College Healthcare NHS Trust,10/01/2023,Dist Award - Nat Cea,"Div Of Surg, Cardiov & Cancer",Imperial College London,4884261,"55,426.44",Optional requirement only,0
Department of Health,Imperial College Healthcare NHS Trust,10/01/2023,Dist Award - Nat Cea,Div Of Women Cardiac Clin Sup & Sexual Health Serv,Imperial College London,4884261,"33,988.00",Optional requirement only,0
Department of Health,Imperial College Healthcare NHS Trust,10/01/2023,Hopper Service,Estates Directorate,Dhl Supply Chain  (Former Excel),4870492,"40,329.65",Optional requirement only,0
Department of Health,Imperial College Healthcare NHS Trust,10/01/2023,Hosting Service Expenses,Nhs Elect,People Star Ltd,4884657,"53,520.00",Optional requirement only,0
Department of Health,Imperial College Healthcare NHS Trust,10/01/2023,Ic Pay Recharge In: Med,Div Of Med & Integrated Care,Imperial College London,4884260,"35,580.94",Optional requirement only,0
Department of Health,Imperial College Healthcare NHS Trust,10/01/2023,Ic Pay Recharge In: Med,Div Of Med & Integrated Care,Imperial College London,4884261,"175,150.31",Optional requirement only,0
Department of Health,Imperial College Healthcare NHS Trust,10/01/2023,Ic Pay Recharge In: Med,"Div Of Surg, Cardiov & Cancer",Imperial College London,4884260,"27,734.59",Optional requirement only,0
Department of Health,Imperial College Healthcare NHS Trust,10/01/2023,Ic Pay Recharge In: Med,"Div Of Surg, Cardiov & Cancer",Imperial College London,4884261,"376,634.70",Optional requirement only,0
Department of Health,Imperial College Healthcare NHS Trust,10/01/2023,Ic Pay Recharge In: Med,Div Of Women Cardiac Clin Sup & Sexual Health Serv,Imperial College London,4884260,"25,629.69",Optional requirement only,0
Department of Health,Imperial College Healthcare NHS Trust,10/01/2023,Ic Pay Recharge In: Med,Div Of Women Cardiac Clin Sup & Sexual Health Serv,Imperial College London,4884261,"175,138.36",Optional requirement only,0
Department of Health,Imperial College Healthcare NHS Trust,10/01/2023,Ic Pay Recharge In: Med,Private Patients Directorate,Imperial College London,4856407,"38,642.80",Optional requirement only,0
Department of Health,Imperial College Healthcare NHS Trust,10/01/2023,Ic Pay Recharge In: Med,Private Patients Directorate,Imperial College London,4876731,"40,485.27",Optional requirement only,0
Department of Health,Imperial College Healthcare NHS Trust,10/01/2023,Jac - Stock,Balance Sheet St Marys,Alloga Uk Ltd,4884281,"40,680.00",Optional requirement only,Stock
Department of Health,Imperial College Healthcare NHS Trust,10/01/2023,Jac - Stock,Balance Sheet St Marys,Alloga Uk Ltd,4884288,"113,049.30",Optional requirement only,Stock
Department of Health,Imperial College Healthcare NHS Trust,10/01/2023,Jac - Stock,Balance Sheet St Marys,Bayer Plc,4885138,"52,466.22",Optional requirement only,Stock
Department of Health,Imperial College Healthcare NHS Trust,10/01/2023,Jac - Stock,Balance Sheet St Marys,Bms Pharmaceuticals Ltd (0034),4885213,"33,169.44",Optional requirement only,Stock
Department of Health,Imperial College Healthcare NHS Trust,10/01/2023,Jac - Stock,Balance Sheet St Marys,Janssen-Cilag Ltd,4884522,"74,654.40",Optional requirement only,Stock
Department of Health,Imperial College Healthcare NHS Trust,10/01/2023,Jac - Stock,Balance Sheet St Marys,Roche Products Ltd,4884088,"60,648.00",Optional requirement only,Stock
Department of Health,Imperial College Healthcare NHS Trust,10/01/2023,Jac - Stock,Balance Sheet St Marys,Roche Products Ltd,4884089,"164,619.36",Optional requirement only,Stock
Department of Health,Imperial College Healthcare NHS Trust,10/01/2023,Jac - Stock,Balance Sheet St Marys,Roche Products Ltd,4886240,"273,832.74",Optional requirement only,Stock
Department of Health,Imperial College Healthcare NHS Trust,10/01/2023,Laboratory Chemicals/ Reagents,Pathology,Chelsea And  Westminster Hospital Nhs Ft,50777,"56,400.00",Optional requirement only,0
Department of Health,Imperial College Healthcare NHS Trust,10/01/2023,Laboratory Equipment,Pathology,Ibg Immucor Limited,58101,"33,397.82",Optional requirement only,0
Department of Health,Imperial College Healthcare NHS Trust,10/01/2023,Med & Surg Equip Repair,Div Of Med & Integrated Care,Aquilant Endoscopy Ltd,4879086,"43,070.40",Optional requirement only,0
Department of Health,Imperial College Healthcare NHS Trust,10/01/2023,Med & Surg Equip Repair,"Div Of Surg, Cardiov & Cancer",Ge Medical Systems Limited,4886374,"34,070.46",Optional requirement only,0
Department of Health,Imperial College Healthcare NHS Trust,10/01/2023,Organ Donor Expenses,West London Children'S Healthcare,The Anthony Nolan Trust,4884666,"55,590.00",Optional requirement only,0
Department of Health,Imperial College Healthcare NHS Trust,10/01/2023,Patients Appl: Purchase,"Div Of Surg, Cardiov & Cancer",Blatchford Limited,4883545,"34,932.95",Optional requirement only,0
Department of Health,Imperial College Healthcare NHS Trust,10/01/2023,Purch Hcare Independent Sector,"Div Of Surg, Cardiov & Cancer",Defence Medical Welfare Service,4847561,"25,710.00",Optional requirement only,0
Department of Health,Imperial College Healthcare NHS Trust,10/01/2023,Rent,Div Of Med & Integrated Care,Nhs Property Services Ltd,4795974,"89,726.02",Optional requirement only,0
Department of Health,Imperial College Healthcare NHS Trust,10/01/2023,Rent,Div Of Women Cardiac Clin Sup & Sexual Health Serv,Hanwell Health Centre,4883449,"64,443.38",Optional requirement only,0
Department of Health,Imperial College Healthcare NHS Trust,10/03/2023,Audit Fees: Internal,Finance Directorate,Kpmg Llp,4873247,"33,270.00",Optional requirement only,0
Department of Health,Imperial College Healthcare NHS Trust,10/03/2023,Car Salary Sacrifice,Ichnt Balance Sheet,Tuskerdirect Ltd,4870828,"101,288.28",Optional requirement only,0
Department of Health,Imperial College Healthcare NHS Trust,10/03/2023,Clinical Managed Service Contr,Pathology,Abbott Laboratories Ltd,58174,"37,099.16",Optional requirement only,0
Department of Health,Imperial College Healthcare NHS Trust,10/03/2023,Computer Software/License,Div Of Women Cardiac Clin Sup & Sexual Health Serv,Philips Electronics Uk Ltd,4883447,"296,012.10",Optional requirement only,0
Department of Health,Imperial College Healthcare NHS Trust,10/03/2023,Contr Other External,Div Of Women Cardiac Clin Sup & Sexual Health Serv,Alliance Medical Ltd,4833365,"47,436.00",Optional requirement only,0
Department of Health,Imperial College Healthcare NHS Trust,10/03/2023,Contr Other External,Div Of Women Cardiac Clin Sup & Sexual Health Serv,Alliance Medical Ltd,4838205,"53,436.00",Optional requirement only,0
Department of Health,Imperial College Healthcare NHS Trust,10/03/2023,Contr Other External,Div Of Women Cardiac Clin Sup & Sexual Health Serv,Alliance Medical Ltd,4859964,"58,098.00",Optional requirement only,0
Department of Health,Imperial College Healthcare NHS Trust,10/03/2023,Cy Auc -Addns-Bd Purchased,Capital Summary,Imaging Matters,4888314,"975,950.98",Optional requirement only,0
Department of Health,Imperial College Healthcare NHS Trust,10/03/2023,Cy Auc -Addns- It Eqpt-Addns,Capital Summary,Trustco Plc,4842037,"46,920.00",Optional requirement only,0
Department of Health,Imperial College Healthcare NHS Trust,10/03/2023,Cy Auc -Addns- P & M-Purchased,Capital Summary,Brainlab Ltd,4844580,"86,226.88",Optional requirement only,0
Department of Health,Imperial College Healthcare NHS Trust,10/03/2023,Cy Auc -Addns- P & M-Purchased,Capital Summary,Hanson Instruments Ltd,4888292,"78,948.00",Optional requirement only,0
Department of Health,Imperial College Healthcare NHS Trust,10/03/2023,Decontamination Services,Estates Directorate,Ihss Limited,4888308,"455,504.15",Optional requirement only,0
Department of Health,Imperial College Healthcare NHS Trust,10/03/2023,Decontamination Services,Estates Directorate,Ihss Limited,4888309,"455,504.15",Optional requirement only,0
Department of Health,Imperial College Healthcare NHS Trust,10/03/2023,Drugs Nhs,Div Of Women Cardiac Clin Sup & Sexual Health Serv,Nhs Business Services Authority,4883596,"30,780.88",Optional requirement only,0
Department of Health,Imperial College Healthcare NHS Trust,10/03/2023,Ext Contr Logistics,Div Of Women Cardiac Clin Sup & Sexual Health Serv,Eleanor Hospital Logistics Ltd,4889199,"58,802.76",Optional requirement only,0
Department of Health,Imperial College Healthcare NHS Trust,10/03/2023,Furniture & Fittings,Pathology,Bmm Weston Ltd,58256,"39,312.00",Optional requirement only,0
Department of Health,Imperial College Healthcare NHS Trust,10/03/2023,Jac - Stock,Balance Sheet St Marys,Aah Pharmaceuticals Limited,4888183,"33,291.00",Optional requirement only,Stock
Department of Health,Imperial College Healthcare NHS Trust,10/03/2023,Jac - Stock,Balance Sheet St Marys,Alliance Healthcare (Distribution) Ltd,4886878,"40,066.75",Optional requirement only,Stock
Department of Health,Imperial College Healthcare NHS Trust,10/03/2023,Jac - Stock,Balance Sheet St Marys,Alliance Healthcare (Distribution) Ltd,4887054,"81,582.30",Optional requirement only,Stock
Department of Health,Imperial College Healthcare NHS Trust,10/03/2023,Jac - Stock,Balance Sheet St Marys,Baxter Healthcare Ltd,4889148,"31,465.14",Optional requirement only,Stock
Department of Health,Imperial College Healthcare NHS Trust,10/03/2023,Jac - Stock,Balance Sheet St Marys,Lloyds Pharmacy Clinical Homecare,4887774,"34,427.06",Optional requirement only,Stock
Department of Health,Imperial College Healthcare NHS Trust,10/03/2023,Jac - Stock,Balance Sheet St Marys,Qualasept Ltd,4889035,"54,896.04",Optional requirement only,Stock
Department of Health,Imperial College Healthcare NHS Trust,10/03/2023,Jac - Stock,Balance Sheet St Marys,Qualasept Ltd,4889037,"34,528.68",Optional requirement only,Stock
Department of Health,Imperial College Healthcare NHS Trust,10/03/2023,Jac - Stock,Balance Sheet St Marys,Qualasept Ltd,4889038,"55,803.84",Optional requirement only,Stock
Department of Health,Imperial College Healthcare NHS Trust,10/03/2023,Jac - Stock,Balance Sheet St Marys,Roche Products Ltd,4889073,"280,811.82",Optional requirement only,Stock
Department of Health,Imperial College Healthcare NHS Trust,10/03/2023,Jac - Stock,Balance Sheet St Marys,Roche Products Ltd,4889075,"31,920.00",Optional requirement only,Stock
Department of Health,Imperial College Healthcare NHS Trust,10/03/2023,Laboratory Culture Media,Pathology,Dhl Supply Chain  (Former Excel),58331,"58,500.00",Optional requirement only,0
Department of Health,Imperial College Healthcare NHS Trust,10/03/2023,Med & Surg Equip General,Div Of Med & Integrated Care,Baxter Healthcare Ltd,4764259,"47,025.00",Optional requirement only,0
Department of Health,Imperial College Healthcare NHS Trust,10/03/2023,Med & Surg Equip Repair,Div Of Women Cardiac Clin Sup & Sexual Health Serv,Ge Medical Systems Limited,4875164,"34,625.86",Optional requirement only,0
Department of Health,Imperial College Healthcare NHS Trust,10/03/2023,Other Research Exp - Pay,Rd Medical Directorate,Central & North West London Nhs Ft,4885025,"33,540.00",Optional requirement only,0
Department of Health,Imperial College Healthcare NHS Trust,10/03/2023,Patients Appl: Purchase,"Div Of Surg, Cardiov & Cancer",Blatchford Limited,4883554,"49,430.51",Optional requirement only,0
Department of Health,Imperial College Healthcare NHS Trust,10/03/2023,Printing Costs,Information & Comms Technology,Vision Office Automation Ltd,4874781,"150,500.32",Optional requirement only,0
Department of Health,Imperial College Healthcare NHS Trust,10/03/2023,Purch Hcare Independent Sector,Div Of Med & Integrated Care,London Central & West Unscheduled Care Collab,4887993,"390,290.58",Optional requirement only,0
Department of Health,Imperial College Healthcare NHS Trust,10/03/2023,Season Ticket Cr Abellio,Ichnt Balance Sheet,Abellio Transport Holdings Ltd,4882237,"34,870.40",Optional requirement only,0
Department of Health,Imperial College Healthcare NHS Trust,10/05/2023,Acton Housing Association,Ichnt Balance Sheet,A2dominion Housing Group Ltd,4889738,"400,456.39",Optional requirement only,Housing Deductions
Department of Health,Imperial College Healthcare NHS Trust,10/05/2023,Agency Consultant,Pathology,Reed Specialist Recruitment Ltd,58429,"45,188.55",Optional requirement only,0
Department of Health,Imperial College Healthcare NHS Trust,10/05/2023,Agency Nursing: Qualified,Div Of Med & Integrated Care,Reed Specialist Recruitment Ltd,4890806,"65,228.60",Optional requirement only,0
Department of Health,Imperial College Healthcare NHS Trust,10/05/2023,Agency Nursing: Qualified,"Div Of Surg, Cardiov & Cancer",Reed Specialist Recruitment Ltd,4890806,"45,875.81",Optional requirement only,0
Department of Health,Imperial College Healthcare NHS Trust,10/05/2023,Computer Hardware Purch,Div Of Women Cardiac Clin Sup & Sexual Health Serv,Xerox (Uk) Ltd,4888865,"86,459.64",Optional requirement only,0
Department of Health,Imperial College Healthcare NHS Trust,10/05/2023,Cy Auc -Addns-Bd Purchased,Capital Summary,Quinn London Limited,4891254,"726,294.00",Optional requirement only,0
Department of Health,Imperial College Healthcare NHS Trust,10/05/2023,Cy Auc -Addns- P & M-Purchased,Capital Summary,B Braun Avitum Ltd,4886739,"142,848.24",Optional requirement only,0
Department of Health,Imperial College Healthcare NHS Trust,10/05/2023,Cy Auc -Addns- Prof Fee)-Purch,Capital Summary,Hok International Limited,4890551,"47,668.80",Optional requirement only,0
Department of Health,Imperial College Healthcare NHS Trust,10/05/2023,Cy Auc -Addns- Prof Fee)-Purch,Capital Summary,Lexica Health & Life Sciences Consultancy Ltd,4879611,"43,200.00",Optional requirement only,0
Department of Health,Imperial College Healthcare NHS Trust,10/05/2023,Cy Auc -Addns- Prof Fee)-Purch,Capital Summary,Savills (Uk) Limited,4891294,"42,648.00",Optional requirement only,0
Department of Health,Imperial College Healthcare NHS Trust,10/05/2023,Dialysers,Div Of Med & Integrated Care,Nxstage Medical Uk Ltd,4849829,"63,789.20",Optional requirement only,0
Department of Health,Imperial College Healthcare NHS Trust,10/05/2023,Jac - Stock,Balance Sheet St Marys,Healthcare At Home Ltd,4889649,"37,299.00",Optional requirement only,Stock
Department of Health,Imperial College Healthcare NHS Trust,10/05/2023,Jac - Stock,Balance Sheet St Marys,Qualasept Ltd,4884016,"83,251.86",Optional requirement only,Stock
Department of Health,Imperial College Healthcare NHS Trust,10/05/2023,Lease Charges,Information & Comms Technology,Xerox (Uk) Ltd,4885827,"50,868.07",Optional requirement only,0
Department of Health,Imperial College Healthcare NHS Trust,10/05/2023,Lease Charges,Information & Comms Technology,Xerox (Uk) Ltd,4885830,"47,537.96",Optional requirement only,0
Department of Health,Imperial College Healthcare NHS Trust,10/05/2023,Med & Surg Equip General,Div Of Med & Integrated Care,Baxter Healthcare Ltd,4743961,"65,265.01",Optional requirement only,0
Department of Health,Imperial College Healthcare NHS Trust,10/05/2023,Nhs Pay Recharge In: Med,Pathology,Imperial College Healthcare Charity,58445,"35,989.00",Optional requirement only,0
Department of Health,Imperial College Healthcare NHS Trust,10/05/2023,Nhs Pay Recharge In: Med,Pathology,Imperial College Healthcare Charity,58446,"35,000.00",Optional requirement only,0
Department of Health,Imperial College Healthcare NHS Trust,10/05/2023,Patients Appl: Purchase,"Div Of Surg, Cardiov & Cancer",Blatchford Limited,4888109,"53,877.34",Optional requirement only,0
Department of Health,Imperial College Healthcare NHS Trust,10/05/2023,Professional Services,"Div Of Surg, Cardiov & Cancer",Acumentice Limited,4874338,"104,902.56",Optional requirement only,0
Department of Health,Imperial College Healthcare NHS Trust,10/05/2023,Professional Services,"Div Of Surg, Cardiov & Cancer",Acumentice Limited,4885807,"103,903.20",Optional requirement only,0
Department of Health,Imperial College Healthcare NHS Trust,10/05/2023,Provisions,Estates Directorate,Brakes Bros Ltd,4891252,"237,486.00",Optional requirement only,0
Department of Health,Imperial College Healthcare NHS Trust,10/05/2023,Staffflow Suspense,Ichnt Balance Sheet,Globe Locums Ltd,4856913,"52,141.80",Optional requirement only,0
Department of Health,Imperial College Healthcare NHS Trust,10/05/2023,Staffflow Suspense,Ichnt Balance Sheet,Globe Locums Ltd,4871381,"37,385.09",Optional requirement only,0
Department of Health,Imperial College Healthcare NHS Trust,10/05/2023,Thames Valley Housing Assoc,Ichnt Balance Sheet,Metropolitan Thames Valley,4889739,"117,828.21",Optional requirement only,Housing Deductions
Department of Health,Imperial College Healthcare NHS Trust,10/10/2023,Consultancy Fees,Finance Directorate,Nhs England,4879762,"34,767.00",Optional requirement only,0
Department of Health,Imperial College Healthcare NHS Trust,10/10/2023,Cy Auc -Addns-Bd Purchased,Capital Summary,Cuffe  Plc,4870794,"55,301.72",Optional requirement only,0
Department of Health,Imperial College Healthcare NHS Trust,10/10/2023,Cy Auc -Addns-Bd Purchased,Capital Summary,Cuffe  Plc,4888244,"105,374.72",Optional requirement only,0
Department of Health,Imperial College Healthcare NHS Trust,10/10/2023,Cy Auc -Addns-Bd Purchased,Capital Summary,Quinn London Limited,4891557,"710,904.00",Optional requirement only,0
Department of Health,Imperial College Healthcare NHS Trust,10/10/2023,Cy Auc -Addns- It Eqpt-Addns,Capital Summary,Netcall Telecom Limited,4875660,"118,539.60",Optional requirement only,0
Department of Health,Imperial College Healthcare NHS Trust,10/10/2023,Cy Auc -Addns- P & M-Purchased,Capital Summary,Draeger Medical Uk Ltd,4893032,"99,646.24",Optional requirement only,0
Department of Health,Imperial College Healthcare NHS Trust,10/10/2023,Jac - Stock,Balance Sheet St Marys,Bayer Plc,4893295,"39,235.61",Optional requirement only,Stock
Department of Health,Imperial College Healthcare NHS Trust,10/10/2023,Jac - Stock,Balance Sheet St Marys,Biotest (Uk) Ltd,4893349,"92,907.00",Optional requirement only,Stock
Department of Health,Imperial College Healthcare NHS Trust,10/10/2023,Jac - Stock,Balance Sheet St Marys,Bms Pharmaceuticals Ltd (0034),4893436,"55,062.00",Optional requirement only,Stock
Department of Health,Imperial College Healthcare NHS Trust,10/10/2023,Jac - Stock,Balance Sheet St Marys,Csl Behring Uk Ltd,4892786,"45,614.95",Optional requirement only,Stock
Department of Health,Imperial College Healthcare NHS Trust,10/10/2023,Jac - Stock,Balance Sheet St Marys,Csl Behring Uk Ltd,4892787,"158,714.80",Optional requirement only,Stock
Department of Health,Imperial College Healthcare NHS Trust,10/10/2023,Jac - Stock,Balance Sheet St Marys,Janssen-Cilag Ltd,4892765,"31,285.44",Optional requirement only,Stock
Department of Health,Imperial College Healthcare NHS Trust,10/10/2023,Jac - Stock,Balance Sheet St Marys,Janssen-Cilag Ltd,4893307,"38,653.92",Optional requirement only,Stock
Department of Health,Imperial College Healthcare NHS Trust,10/10/2023,Jac - Stock,Balance Sheet St Marys,Janssen-Cilag Ltd,4893309,"31,873.73",Optional requirement only,Stock
Department of Health,Imperial College Healthcare NHS Trust,10/10/2023,Jac - Stock,Balance Sheet St Marys,Qualasept Ltd,4889788,"55,803.84",Optional requirement only,Stock
Department of Health,Imperial College Healthcare NHS Trust,10/10/2023,Jac - Stock,Balance Sheet St Marys,Roche Products Ltd,4892922,"39,672.00",Optional requirement only,Stock
Department of Health,Imperial College Healthcare NHS Trust,10/10/2023,Jac - Stock,Balance Sheet St Marys,Roche Products Ltd,4892923,"252,954.00",Optional requirement only,Stock
Department of Health,Imperial College Healthcare NHS Trust,10/10/2023,Pest Control,Estates Directorate,Rentokil Pest Control,4892227,"36,003.76",Optional requirement only,0
Department of Health,Imperial College Healthcare NHS Trust,10/10/2023,Postage & Carriage,Estates Directorate,Francotyp-Postalia Uk Limited T/A Teleset,4891702,"28,000.00",Optional requirement only,0
Department of Health,Imperial College Healthcare NHS Trust,10/10/2023,Professional Services,Information & Comms Technology,Dnj Consultancy Ltd,4891385,"115,024.00",Optional requirement only,0
Department of Health,Imperial College Healthcare NHS Trust,10/10/2023,Purch Hcare Independent Sector,Div Of Med & Integrated Care,London Central & West Unscheduled Care Collab,4893284,"390,290.58",Optional requirement only,0
Department of Health,Imperial College Healthcare NHS Trust,10/10/2023,Rent,Div Of Women Cardiac Clin Sup & Sexual Health Serv,Nhs Property Services Ltd,4842327,"31,482.21",Optional requirement only,0
Department of Health,Imperial College Healthcare NHS Trust,10/10/2023,Rent,Div Of Women Cardiac Clin Sup & Sexual Health Serv,Nhs Property Services Ltd,4842332,"32,170.78",Optional requirement only,0
Department of Health,Imperial College Healthcare NHS Trust,10/10/2023,Supplies Issues Recharges,Ichnt Balance Sheet,Supply Chain Coordination Ltd (Sccl) ( 101),4828878,"117,661.88",Optional requirement only,Stock
Department of Health,Imperial College Healthcare NHS Trust,10/10/2023,Supplies Issues Recharges,Ichnt Balance Sheet,Supply Chain Coordination Ltd (Sccl) ( 101),4828880,"68,445.82",Optional requirement only,Stock
Department of Health,Imperial College Healthcare NHS Trust,10/10/2023,Supplies Issues Recharges,Ichnt Balance Sheet,Supply Chain Coordination Ltd (Sccl) ( 101),4867853,"124,986.90",Optional requirement only,Stock
Department of Health,Imperial College Healthcare NHS Trust,10/10/2023,Supplies Issues Recharges,Ichnt Balance Sheet,Supply Chain Coordination Ltd (Sccl) ( 101),4867854,"133,561.20",Optional requirement only,Stock
Department of Health,Imperial College Healthcare NHS Trust,10/10/2023,Supplies Issues Recharges,Ichnt Balance Sheet,Supply Chain Coordination Ltd (Sccl) ( 101),4867855,"95,821.19",Optional requirement only,Stock
Department of Health,Imperial College Healthcare NHS Trust,10/10/2023,Supplies Issues Recharges,Ichnt Balance Sheet,Supply Chain Coordination Ltd (Sccl) ( 101),4867856,"153,093.65",Optional requirement only,Stock
Department of Health,Imperial College Healthcare NHS Trust,10/10/2023,Supplies Issues Recharges,Ichnt Balance Sheet,Supply Chain Coordination Ltd (Sccl) ( 101),4867857,"114,055.36",Optional requirement only,Stock
Department of Health,Imperial College Healthcare NHS Trust,10/10/2023,Supplies Issues Recharges,Ichnt Balance Sheet,Supply Chain Coordination Ltd (Sccl) ( 101),4867858,"54,347.26",Optional requirement only,Stock
Department of Health,Imperial College Healthcare NHS Trust,10/10/2023,Supplies Issues Recharges,Ichnt Balance Sheet,Supply Chain Coordination Ltd (Sccl) ( 101),4871146,"43,057.86",Optional requirement only,Stock
Department of Health,Imperial College Healthcare NHS Trust,10/10/2023,Supplies Issues Recharges,Ichnt Balance Sheet,Supply Chain Coordination Ltd (Sccl) ( 101),4871147,"123,579.02",Optional requirement only,Stock
Department of Health,Imperial College Healthcare NHS Trust,10/10/2023,Supplies Issues Recharges,Ichnt Balance Sheet,Supply Chain Coordination Ltd (Sccl) ( 101),4871148,"99,034.25",Optional requirement only,Stock
Department of Health,Imperial College Healthcare NHS Trust,10/10/2023,Supplies Issues Recharges,Ichnt Balance Sheet,Supply Chain Coordination Ltd (Sccl) ( 101),4871149,"80,148.76",Optional requirement only,Stock
Department of Health,Imperial College Healthcare NHS Trust,10/10/2023,Supplies Issues Recharges,Ichnt Balance Sheet,Supply Chain Coordination Ltd (Sccl) ( 101),4871150,"125,047.53",Optional requirement only,Stock
Department of Health,Imperial College Healthcare NHS Trust,10/10/2023,Supplies Issues Recharges,Ichnt Balance Sheet,Supply Chain Coordination Ltd (Sccl) ( 101),4875230,"127,703.73",Optional requirement only,Stock
Department of Health,Imperial College Healthcare NHS Trust,10/10/2023,Supplies Issues Recharges,Ichnt Balance Sheet,Supply Chain Coordination Ltd (Sccl) ( 101),4875231,"88,609.18",Optional requirement only,Stock
Department of Health,Imperial College Healthcare NHS Trust,10/10/2023,Supplies Issues Recharges,Ichnt Balance Sheet,Supply Chain Coordination Ltd (Sccl) ( 101),4875232,"51,289.29",Optional requirement only,Stock
Department of Health,Imperial College Healthcare NHS Trust,10/10/2023,Supplies Issues Recharges,Ichnt Balance Sheet,Supply Chain Coordination Ltd (Sccl) ( 101),4875233,"150,425.25",Optional requirement only,Stock
Department of Health,Imperial College Healthcare NHS Trust,10/10/2023,Supplies Issues Recharges,Ichnt Balance Sheet,Supply Chain Coordination Ltd (Sccl) ( 101),4875234,"127,261.00",Optional requirement only,Stock
Department of Health,Imperial College Healthcare NHS Trust,10/10/2023,Supplies Issues Recharges,Ichnt Balance Sheet,Supply Chain Coordination Ltd (Sccl) ( 101),4875235,"114,095.48",Optional requirement only,Stock
Department of Health,Imperial College Healthcare NHS Trust,10/10/2023,Supplies Issues Recharges,Ichnt Balance Sheet,Supply Chain Coordination Ltd (Sccl) ( 101),4879570,"142,150.40",Optional requirement only,Stock
Department of Health,Imperial College Healthcare NHS Trust,10/10/2023,Supplies Issues Recharges,Ichnt Balance Sheet,Supply Chain Coordination Ltd (Sccl) ( 101),4879571,"118,479.94",Optional requirement only,Stock
Department of Health,Imperial College Healthcare NHS Trust,10/10/2023,Supplies Issues Recharges,Ichnt Balance Sheet,Supply Chain Coordination Ltd (Sccl) ( 101),4879572,"106,791.95",Optional requirement only,Stock
Department of Health,Imperial College Healthcare NHS Trust,10/10/2023,Supplies Issues Recharges,Ichnt Balance Sheet,Supply Chain Coordination Ltd (Sccl) ( 101),4879573,"95,781.13",Optional requirement only,Stock
Department of Health,Imperial College Healthcare NHS Trust,10/10/2023,Supplies Issues Recharges,Ichnt Balance Sheet,Supply Chain Coordination Ltd (Sccl) ( 101),4879574,"143,003.56",Optional requirement only,Stock
Department of Health,Imperial College Healthcare NHS Trust,10/10/2023,Supplies Issues Recharges,Ichnt Balance Sheet,Supply Chain Coordination Ltd (Sccl) ( 101),4883975,"132,634.60",Optional requirement only,Stock
Department of Health,Imperial College Healthcare NHS Trust,10/10/2023,Supplies Issues Recharges,Ichnt Balance Sheet,Supply Chain Coordination Ltd (Sccl) ( 101),4883976,"59,325.70",Optional requirement only,Stock
Department of Health,Imperial College Healthcare NHS Trust,10/10/2023,Supplies Issues Recharges,Ichnt Balance Sheet,Supply Chain Coordination Ltd (Sccl) ( 101),4883977,"112,442.57",Optional requirement only,Stock
Department of Health,Imperial College Healthcare NHS Trust,10/10/2023,Supplies Issues Recharges,Ichnt Balance Sheet,Supply Chain Coordination Ltd (Sccl) ( 101),4883978,"108,154.11",Optional requirement only,Stock
Department of Health,Imperial College Healthcare NHS Trust,10/10/2023,Supplies Issues Recharges,Ichnt Balance Sheet,Supply Chain Coordination Ltd (Sccl) ( 101),4883979,"155,465.33",Optional requirement only,Stock
Department of Health,Imperial College Healthcare NHS Trust,10/10/2023,Supplies Issues Recharges,Ichnt Balance Sheet,Supply Chain Coordination Ltd (Sccl) ( 101),4883981,"139,740.81",Optional requirement only,Stock
Department of Health,Imperial College Healthcare NHS Trust,10/10/2023,Supplies Issues Recharges,Ichnt Balance Sheet,Supply Chain Coordination Ltd (Sccl) ( 101),4888880,"126,697.63",Optional requirement only,Stock
Department of Health,Imperial College Healthcare NHS Trust,10/10/2023,Supplies Issues Recharges,Ichnt Balance Sheet,Supply Chain Coordination Ltd (Sccl) ( 101),4888881,"139,980.81",Optional requirement only,Stock
Department of Health,Imperial College Healthcare NHS Trust,10/10/2023,Supplies Issues Recharges,Ichnt Balance Sheet,Supply Chain Coordination Ltd (Sccl) ( 101),4888882,"137,425.33",Optional requirement only,Stock
Department of Health,Imperial College Healthcare NHS Trust,10/10/2023,Supplies Issues Recharges,Ichnt Balance Sheet,Supply Chain Coordination Ltd (Sccl) ( 101),4888883,"77,674.89",Optional requirement only,Stock
Department of Health,Imperial College Healthcare NHS Trust,10/10/2023,Supplies Issues Recharges,Ichnt Balance Sheet,Supply Chain Coordination Ltd (Sccl) ( 101),4888884,"117,093.24",Optional requirement only,Stock
Department of Health,Imperial College Healthcare NHS Trust,10/10/2023,Supplies Issues Recharges,Ichnt Balance Sheet,Supply Chain Coordination Ltd (Sccl) ( 101),4888885,"110,510.42",Optional requirement only,Stock
Department of Health,Imperial College Healthcare NHS Trust,10/12/2023,Agency Consultant,Pathology,Reed Specialist Recruitment Ltd,58613,"47,486.17",Optional requirement only,0
Department of Health,Imperial College Healthcare NHS Trust,10/12/2023,Agency Nursing: Qualified,Div Of Med & Integrated Care,Reed Specialist Recruitment Ltd,4895811,"73,323.74",Optional requirement only,0
Department of Health,Imperial College Healthcare NHS Trust,10/12/2023,Car Salary Sacrifice,Ichnt Balance Sheet,Tuskerdirect Ltd,4890542,"101,694.69",Optional requirement only,0
Department of Health,Imperial College Healthcare NHS Trust,10/12/2023,Clinical Managed Service Contr,Div Of Women Cardiac Clin Sup & Sexual Health Serv,Medtronic Ltd,4879469,"1,867,715.48",Optional requirement only,0
Department of Health,Imperial College Healthcare NHS Trust,10/12/2023,Clinical Managed Service Contr,Pathology,Abbott Laboratories Ltd,57500,"580,320.56",Optional requirement only,0
Department of Health,Imperial College Healthcare NHS Trust,10/12/2023,Clinical Managed Service Contr,Pathology,Abbott Laboratories Ltd,57501,"548,567.25",Optional requirement only,0
Department of Health,Imperial College Healthcare NHS Trust,10/12/2023,Clinical Managed Service Contr,Pathology,Abbott Laboratories Ltd,57502,"30,164.64",Optional requirement only,0
Department of Health,Imperial College Healthcare NHS Trust,10/12/2023,Clinical Managed Service Contr,Pathology,Abbott Laboratories Ltd,57503,"267,212.95",Optional requirement only,0
Department of Health,Imperial College Healthcare NHS Trust,10/12/2023,Clinical Managed Service Contr,Pathology,Abbott Laboratories Ltd,57506,"79,513.16",Optional requirement only,0
Department of Health,Imperial College Healthcare NHS Trust,10/12/2023,Clinical Managed Service Contr,Pathology,Abbott Laboratories Ltd,57595,"398,905.56",Optional requirement only,0
Department of Health,Imperial College Healthcare NHS Trust,10/12/2023,Clinical Managed Service Contr,Pathology,Abbott Laboratories Ltd,58268,"424,340.86",Optional requirement only,0
Department of Health,Imperial College Healthcare NHS Trust,10/12/2023,Clinical Managed Service Contr,Pathology,Abbott Laboratories Ltd,58269,"515,913.90",Optional requirement only,0
Department of Health,Imperial College Healthcare NHS Trust,10/12/2023,Clinical Managed Service Contr,Pathology,Abbott Laboratories Ltd,58274,"211,825.48",Optional requirement only,0
Department of Health,Imperial College Healthcare NHS Trust,10/12/2023,Contr Other External,Div Of Women Cardiac Clin Sup & Sexual Health Serv,Alliance Medical Ltd,4881574,"93,000.00",Optional requirement only,0
Department of Health,Imperial College Healthcare NHS Trust,10/12/2023,Cy Auc -Addns-Bd Purchased,Capital Summary,Cuffe  Plc,4887987,"302,062.48",Optional requirement only,0
Department of Health,Imperial College Healthcare NHS Trust,10/12/2023,Cy Auc -Addns-Bd Purchased,Capital Summary,Playfords Limited,4889939,"53,757.00",Optional requirement only,0
Department of Health,Imperial College Healthcare NHS Trust,10/12/2023,Cy Auc -Addns- P & M-Purchased,Capital Summary,Siemens Healthcare Ltd,4880375,"72,600.01",Optional requirement only,0
Department of Health,Imperial College Healthcare NHS Trust,10/12/2023,Dialysers,Div Of Med & Integrated Care,Baxter Healthcare Ltd,4877094,"51,222.80",Optional requirement only,0
Department of Health,Imperial College Healthcare NHS Trust,10/12/2023,Dialysers,Div Of Med & Integrated Care,Baxter Healthcare Ltd,4877096,"28,354.80",Optional requirement only,0
Department of Health,Imperial College Healthcare NHS Trust,10/12/2023,Dialysers,Div Of Med & Integrated Care,Baxter Healthcare Ltd,4877097,"26,624.20",Optional requirement only,0
Department of Health,Imperial College Healthcare NHS Trust,10/12/2023,Dialysers,Div Of Med & Integrated Care,Baxter Healthcare Ltd,4877099,"182,121.60",Optional requirement only,0
Department of Health,Imperial College Healthcare NHS Trust,10/12/2023,Drugs Pbr Excluded,"Div Of Surg, Cardiov & Cancer",Healthcare At Home Ltd,4892655,"26,069.70",Optional requirement only,0
Department of Health,Imperial College Healthcare NHS Trust,10/12/2023,Ext Contr Logistics,Finance Directorate,Eleanor Hospital Logistics Ltd,4848410,"61,557.30",Optional requirement only,0
Department of Health,Imperial College Healthcare NHS Trust,10/12/2023,Ext Contr Logistics,Finance Directorate,Eleanor Hospital Logistics Ltd,4867644,"50,655.79",Optional requirement only,0
Department of Health,Imperial College Healthcare NHS Trust,10/12/2023,Ext Contr Logistics,Finance Directorate,Eleanor Hospital Logistics Ltd,4890853,"50,398.42",Optional requirement only,0
Department of Health,Imperial College Healthcare NHS Trust,10/12/2023,Furniture & Fittings,Finance Directorate,Omnicell Limited,4861661,"47,212.80",Optional requirement only,0
Department of Health,Imperial College Healthcare NHS Trust,10/12/2023,Jac - Stock,Balance Sheet St Marys,Bms Pharmaceuticals Ltd (0034),4895294,"33,169.44",Optional requirement only,Stock
Department of Health,Imperial College Healthcare NHS Trust,10/12/2023,Jac - Stock,Balance Sheet St Marys,Csl Behring Uk Ltd,4894328,"136,442.50",Optional requirement only,Stock
Department of Health,Imperial College Healthcare NHS Trust,10/12/2023,Jac - Stock,Balance Sheet St Marys,Polar Speed Distribution Ltd,4895602,"53,298.00",Optional requirement only,Stock
Department of Health,Imperial College Healthcare NHS Trust,10/12/2023,Laboratory Chemicals/ Reagents,Pathology,Roche Diagnostics Ltd,4872280,"1,096,416.18",Optional requirement only,0
Department of Health,Imperial College Healthcare NHS Trust,10/12/2023,Laboratory Chemicals/ Reagents,Pathology,Roche Diagnostics Ltd,4872281,"1,063,570.07",Optional requirement only,0
Department of Health,Imperial College Healthcare NHS Trust,10/12/2023,Med & Prof Fees (Imaging Cons),Ichnt Balance Sheet,Lindo Wing Radiology Llp,4894605,"127,909.98",Optional requirement only,0
Department of Health,Imperial College Healthcare NHS Trust,10/12/2023,Med & Surg Equip General,Div Of Women Cardiac Clin Sup & Sexual Health Serv,Lp Hcs Ltd,4850758,"3,531,276.90",Optional requirement only,0
Department of Health,Imperial College Healthcare NHS Trust,10/12/2023,Med & Surg Equip General,Div Of Women Cardiac Clin Sup & Sexual Health Serv,Lp Hcs Ltd,4876700,"3,609,037.72",Optional requirement only,0
Department of Health,Imperial College Healthcare NHS Trust,10/12/2023,Srvcsrecd-Other Nhs,Finance Directorate,Lancashire Teaching Hospitals Nhs Ft,4881847,"28,496.00",Optional requirement only,0
Department of Health,Imperial College Healthcare NHS Trust,10/12/2023,Supplies Issues Recharges,Ichnt Balance Sheet,Supply Chain Coordination Ltd (Sccl) ( 101),4871152,"85,896.79",Optional requirement only,Stock
Department of Health,Imperial College Healthcare NHS Trust,10/12/2023,Water,Estates Directorate,Castle Water Ltd,4895093,"74,615.93",Optional requirement only,0
Department of Health,Imperial College Healthcare NHS Trust,10/17/2023,Bldg/Eng Equip Maint/Rep,Estates Directorate,Cbre Managed Services Ltd,4896390,"39,035.66",Optional requirement only,0
Department of Health,Imperial College Healthcare NHS Trust,10/17/2023,Computer Software/License,Information & Comms Technology,Cerner Ltd,4796988,"349,664.64",Optional requirement only,0
Department of Health,Imperial College Healthcare NHS Trust,10/17/2023,Contr Refuse & Clin Waste,Estates Directorate,Grundon Waste Management Ltd,4892619,"39,310.86",Optional requirement only,0
Department of Health,Imperial College Healthcare NHS Trust,10/17/2023,Contr Refuse & Clin Waste,Estates Directorate,Grundon Waste Management Ltd,4892642,"37,291.67",Optional requirement only,0
Department of Health,Imperial College Healthcare NHS Trust,10/17/2023,Cy Auc -Addns-Bd Purchased,Capital Summary,Amber Group Limited,4879365,"47,060.88",Optional requirement only,0
Department of Health,Imperial College Healthcare NHS Trust,10/17/2023,Cy Auc -Addns-Bd Purchased,Capital Summary,Cbre Managed Services Ltd,4896390,"1,630,424.03",Optional requirement only,0
Department of Health,Imperial College Healthcare NHS Trust,10/17/2023,Cy Auc -Addns-Bd Purchased,Capital Summary,Playfords Limited,4861857,"40,899.79",Optional requirement only,0
Department of Health,Imperial College Healthcare NHS Trust,10/17/2023,Dialysers,Div Of Med & Integrated Care,Nxstage Medical Uk Ltd,4739296,"61,342.77",Optional requirement only,0
Department of Health,Imperial College Healthcare NHS Trust,10/17/2023,Dialysers,Div Of Med & Integrated Care,Nxstage Medical Uk Ltd,4796026,"59,979.68",Optional requirement only,0
Department of Health,Imperial College Healthcare NHS Trust,10/17/2023,Dialysers,Div Of Med & Integrated Care,Nxstage Medical Uk Ltd,4812267,"68,183.45",Optional requirement only,0
Department of Health,Imperial College Healthcare NHS Trust,10/17/2023,Dialysers,Div Of Med & Integrated Care,Nxstage Medical Uk Ltd,4838154,"62,587.21",Optional requirement only,0
Department of Health,Imperial College Healthcare NHS Trust,10/17/2023,Ext Contract - Patient Travel,Estates Directorate,Falck Uk Ambulance Service Limited,4889200,"2,087,041.12",Optional requirement only,0
Department of Health,Imperial College Healthcare NHS Trust,10/17/2023,Ext Contr Laundry,Estates Directorate,Synergy Health Managed Services Ltd,4896392,"95,481.89",Optional requirement only,0
Department of Health,Imperial College Healthcare NHS Trust,10/17/2023,Ext Contr Laundry,Estates Directorate,Synergy Health Managed Services Ltd,4896393,"71,591.83",Optional requirement only,0
Department of Health,Imperial College Healthcare NHS Trust,10/17/2023,Ext Contr Laundry,Estates Directorate,Synergy Health Managed Services Ltd,4896394,"59,767.36",Optional requirement only,0
Department of Health,Imperial College Healthcare NHS Trust,10/17/2023,Ext Contr Laundry,Estates Directorate,Synergy Health Managed Services Ltd,4896395,"74,820.89",Optional requirement only,0
Department of Health,Imperial College Healthcare NHS Trust,10/17/2023,Hopper Service,Estates Directorate,Dhl Supply Chain  (Former Excel),4888922,"40,329.65",Optional requirement only,0
Department of Health,Imperial College Healthcare NHS Trust,10/17/2023,Isotopes,Div Of Women Cardiac Clin Sup & Sexual Health Serv,Curium Pharma Uk Ltd,4886470,"76,696.80",Optional requirement only,0
Department of Health,Imperial College Healthcare NHS Trust,10/17/2023,Jac - Stock,Balance Sheet St Marys,Alloga Uk Ltd,4896411,"34,944.00",Optional requirement only,Stock
Department of Health,Imperial College Healthcare NHS Trust,10/17/2023,Jac - Stock,Balance Sheet St Marys,Alloga Uk Ltd,4897448,"32,744.00",Optional requirement only,Stock
Department of Health,Imperial College Healthcare NHS Trust,10/17/2023,Jac - Stock,Balance Sheet St Marys,Qualasept Ltd,4898506,"55,803.84",Optional requirement only,Stock
Department of Health,Imperial College Healthcare NHS Trust,10/17/2023,Lab Equip Maint / Repairs,Div Of Med & Integrated Care,Waters Limited,4834798,"33,599.23",Optional requirement only,0
Department of Health,Imperial College Healthcare NHS Trust,10/17/2023,Laboratory Culture Media,Pathology,Dhl Supply Chain  (Former Excel),58704,"58,500.00",Optional requirement only,0
Department of Health,Imperial College Healthcare NHS Trust,10/17/2023,Med & Surg Equip General,Div Of Med & Integrated Care,Nxstage Medical Uk Ltd,4720426,"41,432.12",Optional requirement only,0
Department of Health,Imperial College Healthcare NHS Trust,10/17/2023,Nhs Pay Recharge In: Med,Central Costs,Royal Free London Nhs Foundation Trust,4870353,"133,642.19",Optional requirement only,0
Department of Health,Imperial College Healthcare NHS Trust,10/17/2023,Organ Donor Expenses,"Div Of Surg, Cardiov & Cancer",The Anthony Nolan Trust,4862948,"45,100.00",Optional requirement only,0
Department of Health,Imperial College Healthcare NHS Trust,10/17/2023,Organ Donor Expenses,"Div Of Surg, Cardiov & Cancer",The Anthony Nolan Trust,4883566,"41,220.00",Optional requirement only,0
Department of Health,Imperial College Healthcare NHS Trust,10/17/2023,Other Research Exp - Non-Pay,Rd Medical Directorate,Central London Healthcare Cic,4896637,"46,000.15",Optional requirement only,0
Department of Health,Imperial College Healthcare NHS Trust,10/17/2023,Purch Hcare Independent Sector,"Div Of Surg, Cardiov & Cancer",Genesiscare,4895423,"26,262.00",Optional requirement only,0
Department of Health,Imperial College Healthcare NHS Trust,10/17/2023,Staffflow Suspense,Ichnt Balance Sheet,Globe Locums Ltd,4889114,"39,234.19",Optional requirement only,0
Department of Health,Imperial College Healthcare NHS Trust,10/18/2023,Income Tax Paye,Ichnt Balance Sheet,Hmrc Government Employers Account,4898710,"13,332,220.12",Optional requirement only,0
Department of Health,Imperial College Healthcare NHS Trust,10/18/2023,Income Tax Paye,Ichnt Balance Sheet,Hmrc Government Employers Account,4898711,"12,290,735.86",Optional requirement only,0
Department of Health,Imperial College Healthcare NHS Trust,10/19/2023,Blood Products,Pathology,Nhs Blood And Transplant,4895973,"56,689.16",Optional requirement only,0
Department of Health,Imperial College Healthcare NHS Trust,10/19/2023,Blood Products,Pathology,Nhs Blood And Transplant,4895978,"38,515.48",Optional requirement only,0
Department of Health,Imperial College Healthcare NHS Trust,10/19/2023,Clinical Managed Service Contr,Pathology,Abbott Laboratories Ltd,58270,"31,665.24",Optional requirement only,0
Department of Health,Imperial College Healthcare NHS Trust,10/19/2023,Clinical Managed Service Contr,Pathology,Chelsea And  Westminster Hospital Nhs Ft,55755,"38,693.85",Optional requirement only,0
Department of Health,Imperial College Healthcare NHS Trust,10/19/2023,Computer Software/License,Information & Comms Technology,Mbi Healthcare Technologies Limited,4894518,"38,400.00",Optional requirement only,0
Department of Health,Imperial College Healthcare NHS Trust,10/19/2023,Contr Refuse & Clin Waste,Estates Directorate,Grundon Waste Management Ltd,4892618,"38,575.74",Optional requirement only,0
Department of Health,Imperial College Healthcare NHS Trust,10/19/2023,Drugs Pbr Excluded,"Div Of Surg, Cardiov & Cancer",Healthcare At Home Ltd,4897579,"26,634.60",Optional requirement only,0
Department of Health,Imperial College Healthcare NHS Trust,10/19/2023,Jac - Stock,Balance Sheet St Marys,Alloga Uk Ltd,4899016,"97,632.00",Optional requirement only,Stock
Department of Health,Imperial College Healthcare NHS Trust,10/19/2023,Jac - Stock,Balance Sheet St Marys,Qualasept Ltd,4899923,"110,699.88",Optional requirement only,Stock
Department of Health,Imperial College Healthcare NHS Trust,10/19/2023,Jac - Stock,Balance Sheet St Marys,Qualasept Ltd,4899925,"54,705.60",Optional requirement only,Stock
Department of Health,Imperial College Healthcare NHS Trust,10/19/2023,Med & Surg Equip General,"Div Of Surg, Cardiov & Cancer",Varian Medical Systems Uk Ltd,4897724,"211,671.60",Optional requirement only,0
Department of Health,Imperial College Healthcare NHS Trust,10/19/2023,Nhs Pay Recharge In: Med,"Div Of Surg, Cardiov & Cancer",London North West Univ Healthcare Nhs Trust,4890836,"39,939.00",Optional requirement only,0
Department of Health,Imperial College Healthcare NHS Trust,10/19/2023,Organ Donor Expenses,"Div Of Surg, Cardiov & Cancer",The Anthony Nolan Trust,4883567,"40,485.00",Optional requirement only,0
Department of Health,Imperial College Healthcare NHS Trust,10/19/2023,Professional Services,Estates Directorate,Knight Security Limited,4893611,"32,435.30",Optional requirement only,0
Department of Health,Imperial College Healthcare NHS Trust,10/19/2023,Rent,Estates Directorate,Metropolitan Thames Valley,4897410,"58,223.40",Optional requirement only,0
Department of Health,Imperial College Healthcare NHS Trust,10/19/2023,Srvcsrecd-Other Nhs,"Div Of Surg, Cardiov & Cancer",Nhs Blood And Transplant,4878000,"36,271.88",Optional requirement only,0
Department of Health,Imperial College Healthcare NHS Trust,10/24/2023,Clinical Managed Service Contr,Pathology,Abbott Laboratories Ltd,57504,"152,654.52",Optional requirement only,0
Department of Health,Imperial College Healthcare NHS Trust,10/24/2023,Clinical Managed Service Contr,Pathology,Abbott Laboratories Ltd,57505,"427,208.58",Optional requirement only,0
Department of Health,Imperial College Healthcare NHS Trust,10/24/2023,Clinical Managed Service Contr,Pathology,Abbott Laboratories Ltd,58884,"365,090.28",Optional requirement only,0
Department of Health,Imperial College Healthcare NHS Trust,10/24/2023,Computer Software/License,Information & Comms Technology,Cerner Ltd,4873974,"349,664.64",Optional requirement only,0
Department of Health,Imperial College Healthcare NHS Trust,10/24/2023,Cy Auc -Addns-Bd Purchased,Capital Summary,M&J Group (Construction & Roofin) Ltd [Cs],4883477,"102,330.23",Optional requirement only,0
Department of Health,Imperial College Healthcare NHS Trust,10/24/2023,Cy Auc -Addns- Prof Fee)-Purch,Capital Summary,Freeman Ankerman Partnership,4902152,"48,000.00",Optional requirement only,0
Department of Health,Imperial College Healthcare NHS Trust,10/24/2023,Hosting Service Expenses,Nhs Elect,People Star Ltd,4900927,"53,520.00",Optional requirement only,0
Department of Health,Imperial College Healthcare NHS Trust,10/24/2023,Jac - Stock,Balance Sheet St Marys,Alloga Uk Ltd,4900779,"50,050.00",Optional requirement only,Stock
Department of Health,Imperial College Healthcare NHS Trust,10/24/2023,Jac - Stock,Balance Sheet St Marys,Alloga Uk Ltd,4900780,"97,632.00",Optional requirement only,Stock
Department of Health,Imperial College Healthcare NHS Trust,10/24/2023,Jac - Stock,Balance Sheet St Marys,Baxter Healthcare Ltd,4901986,"30,763.79",Optional requirement only,Stock
Department of Health,Imperial College Healthcare NHS Trust,10/24/2023,Jac - Stock,Balance Sheet St Marys,Roche Products Ltd,4900852,"56,905.20",Optional requirement only,Stock
Department of Health,Imperial College Healthcare NHS Trust,10/24/2023,Lease Charges,Information & Comms Technology,Xerox (Uk) Ltd,4902162,"89,920.10",Optional requirement only,0
Department of Health,Imperial College Healthcare NHS Trust,10/24/2023,Med & Surg Equip General,"Div Of Surg, Cardiov & Cancer",Intuitive Surgical Ltd,4875229,"32,541.80",Optional requirement only,0
Department of Health,Imperial College Healthcare NHS Trust,10/24/2023,Med & Surg Equip General,"Div Of Surg, Cardiov & Cancer",Intuitive Surgical Ltd,4893150,"32,541.80",Optional requirement only,0
Department of Health,Imperial College Healthcare NHS Trust,10/24/2023,Other Research Exp - Pay,Rd Surgery & Cancer Division,Imperial College London,4897744,"31,760.65",Optional requirement only,0
Department of Health,Imperial College Healthcare NHS Trust,10/24/2023,Rent,Div Of Med & Integrated Care,Nhs Property Services Ltd,4893561,"89,726.02",Optional requirement only,0
Department of Health,Imperial College Healthcare NHS Trust,10/24/2023,Taxi & Other Vehicle Hire,Estates Directorate,Dhl Supply Chain  (Former Excel),4888923,"83,657.51",Optional requirement only,0
Department of Health,Imperial College Healthcare NHS Trust,10/24/2023,Taxi & Other Vehicle Hire,Estates Directorate,Dhl Supply Chain  (Former Excel),4889733,"47,089.36",Optional requirement only,0
Department of Health,Imperial College Healthcare NHS Trust,10/26/2023,Rates,Estates Directorate,City Of Westminster,4902837,"197,372.00",Optional requirement only,0
Department of Health,Imperial College Healthcare NHS Trust,10/26/2023,Miscellaneous Expenditure,Human Resources,Blackhawk Network Emea Limited,4839972,"37,926.00",Optional requirement only,0
,,,,,,Sum:,"71,767,727.58",,0
,,,,,Count:,261,,,0
